[Event "FIDE WSCC 65 2022"]
[Site "Assisi"]
[Date "2022.11.25"]
[Round "10.13"]
[White "Kiefer, Gerhard"]
[Black "Martorelli, Antonio"]
[Result "1-0"]
[ECO "B42"]
[WhiteElo "2260"]
[BlackElo "2134"]
[Annotator "TA"]
[PlyCount "65"]
[EventDate "2022.11.14"]
[EventType "swiss"]
[EventCountry "ITA"]
[SourceTitle "playchess.com"]
[Source "ChessBase"]
[SourceQuality "1"]
[TimeControl "40/5400+30:1800+30"]

{[%evp 14,65,25,25,35,6,17,12,61,8,12,7,26,0,31,17,47,14,0,9,22,2,81,26,20,23,84,89,129,111,181,100,127,44,168,100,108,127,116,115,183,185,179,185,170,155,160,-107,102,0,0,0,0,0]} 1. e4 {[%emt 0:00:02]} c5 {[%emt 0:01:22]} 2. Nf3 {[%emt 0:00:09]} e6 {[%emt 0:00:25]} 3. d4 {[%emt 0:00:06]} cxd4 {[%emt 0:00:12]} 4. Nxd4 {[%emt 0:00:05]} a6 {[%emt 0:00:06]} 5. Bd3 {[%emt 0:00:08]} Nf6 {[%emt 0:00:07]} 6. O-O {[%emt 0:00:24]} d6 {[%emt 0:00:05]} 7. f4 {[%emt 0:06:10]} Be7 {[%emt 0:00:47]} 8. Kh1 {[%emt 0:01:18]} Nbd7 {[%emt 0:04:16] B42: Sicilian: Kan Variation: 5 Bd3.} 9. a4 {[%emt 0:07:45]} O-O {[%emt 0:00:37]} 10. Nc3 {[%emt 0:00:46]} Qc7 {[%emt 0:00:44]} (10... h6 $11) 11. Qf3 {[%emt 0:02:11]} (11. g4 $1 $14) 11... Nc5 $11 {[%emt 0:04:04]} 12. Bd2 {[%emt 0:00:53] [#]} Re8 $146 {[%emt 0:08:08]} ({Predecessor:} 12... Nxd3 13. cxd3 Qc5 14. Be3 Qh5 15. Qg3 Ng4 16. Bg1 e5 17. Nf5 Bxf5 18. exf5 Qxf5 {1-0 (43) Cubas,J (2451)-Perdomo,C (2351) Pinamar 2008}) 13. f5 {[%emt 0:12:42]} e5 {[%emt 0:04:30]} 14. Nde2 {[%emt 0:00:35]} Bd7 {[%emt 0:04:42]} 15. Bg5 {[%emt 0:01:06]} (15. b4 $5 {[%cal Rb4c5]} Nxd3 16. cxd3 $11) 15... Bc6 {[%emt 0:05:55][%cal Of6e4]} 16. Bxf6 {[%emt 0:01:38]} Bxf6 {[%emt 0:00:08]} 17. Ng3 {[%emt 0:07:33]} Rab8 {[%emt 0:11:49]} (17... Nxd3 $11 {keeps the balance.} 18. Qxd3 Rac8) 18. b4 {[%emt 0:06:48]} (18. Nh5 $16) 18... Nxd3 {[%emt 0:00:48]} 19. cxd3 {[%emt 0:00:06]} b6 {[%emt 0:04:25]} (19... Kh8 $11 {remains equal.}) 20. Nh5 $16 {[%emt 0:00:35] Threatens to win with Nxf6+.} Qe7 {[%emt 0:00:38]} 21. b5 {[%emt 0:03:12]} Ba8 {[%emt 0:07:11]} (21... axb5 $16 22. axb5 Bb7) 22. Qg4 {[%emt 0:05:00]} ({White should play} 22. bxa6 $18 {And now Rab1 would win.} Rbc8 23. Ne2) 22... Rec8 {[%emt 0:00:56]} 23. Ne2 {[%emt 0:01:50] White is much more active.} (23. Nd1 $16) 23... d5 {[%emt 0:02:44] [#]} ({Black should try} 23... axb5 $1 $14 24. axb5 Kh8) 24. Nxg7 $1 {[%emt 0:15:00][%mdl 512]} dxe4 {[%emt 0:02:24]} (24... Bxg7 $2 25. f6 (25. bxa6 $2 {loses.} f6 $19) 25... Qf8 26. bxa6 $18 (26. Qxg7+ Qxg7 27. fxg7 dxe4 $17)) (24... Kh8 25. Nh5) 25. Nh5+ {[%emt 0:00:43]} Kh8 {[%emt 0:00:49]} 26. dxe4 {[%emt 0:00:12]} a5 {[%emt 0:11:19]} (26... axb5 $16 {is a better defense.} 27. axb5 Rg8) 27. Nxf6 $18 {[%emt 0:00:37]} Qxf6 {[%emt 0:00:03]} 28. Rac1 {[%emt 0:01:20]} Rg8 {[%emt 0:00:47]} 29. Qf3 {[%emt 0:00:12]} Qh4 {[%emt 0:03:52]} 30. Rc4 {[%emt 0:07:41]} (30. Ng3 $16) 30... Rg4 $2 {[%emt 0:02:10] [#]} (30... Bd5 $17 {and life is bright.} 31. g3 Qg4 32. Qxg4 (32. exd5 Qxc4 33. d6 Rbd8 $17) 32... Rxg4) 31. Ng3 {[%emt 0:01:23]} (31. Qc3 $1 $16 {[%cal Rc3e5]} Rbg8 32. Rf4 (32. Qxe5+ $2 {perishes.} f6 $19)) 31... Rbg8 $1 $11 {[%emt 0:00:13][%cal Rg4g3]} 32. Kg1 {[%emt 0:00:16]} Bd5 {[%emt 0:02:17]} 33. Rc2 {[%emt 0:12:13][%mdl 32768] Weighted Error Value: White=0.41/Black=0.41. Loss on time!?} 1-0

[Event "FIDE WSCC 65 2022"]
[Site "Assisi"]
[Date "2022.11.25"]
[Round "10.14"]
[White "Thuesen, Mogens"]
[Black "Kierzek, Matthias"]
[Result "1-0"]
[ECO "B10"]
[WhiteElo "2115"]
[BlackElo "2237"]
[Annotator "TA"]
[PlyCount "41"]
[EventDate "2022.11.14"]
[EventType "swiss"]
[EventCountry "ITA"]
[SourceTitle "playchess.com"]
[Source "ChessBase"]
[SourceQuality "1"]
[TimeControl "40/5400+30:1800+30"]

{[%evp 9,41,-1,-3,-2,20,7,25,9,35,22,43,0,8,8,0,0,115,117,114,66,279,265,274,249,422,398,605,606,611,594,607,588,594,498]} 1. e4 {[%emt 0:00:17]} c6 {[%emt 0:00:07]} 2. d3 {[%emt 0:00:06]} d5 {[%emt 0:00:08]} 3. Nf3 {[%emt 0:00:06][%cal Bg1f3,Bf3e5,Be5d3,Bd3f4][%mdl 32]} dxe4 {[%emt 0:00:20]} 4. dxe4 {[%emt 0:00:08]} Qxd1+ {[%emt 0:00:04]} 5. Kxd1 {[%emt 0:00:08]} Nf6 {[%emt 0:00:04]} 6. Nbd2 {[%emt 0:00:08] B10: Caro-Kann: 2 d3 and 2 c4.} g6 {[%emt 0:03:21]} 7. Ne5 {[%emt 0:00:07]} Be6 {[%emt 0:06:52] [#]} 8. a4 $146 {[%emt 0:04:50][%cal Ba2a4,Ba4a5][%mdl 32] White has an edge.} ({Predecessor:} 8. f3 Bh6 9. Ndc4 Bxc1 10. Kxc1 Nbd7 11. a4 a5 12. b3 Nxe5 13. Nxe5 Nd7 14. Nd3 {0-1 (40) Sanal,V (2601)-Grischuk,A (2764) Chess.com INT 2022}) 8... Bg7 {[%emt 0:00:33][%cal Of6e4]} 9. Nd3 {[%emt 0:00:33]} O-O {[%emt 0:03:28]} 10. a5 {[%emt 0:06:40]} Na6 {[%emt 0:08:45]} 11. Nf4 {[%emt 0:15:12]} Ng4 {[%emt 0:05:33]} 12. Bxa6 {[%emt 0:20:11]} Nxf2+ {[%emt 0:09:18]} (12... bxa6 $11 {remains equal.} 13. Ke2 Bc8) 13. Ke2 $16 {[%emt 0:00:06] [#] And now Nxe6 would win.} Nxh1 {[%emt 0:00:13]} 14. Bxb7 {[%emt 0:00:07][%cal Of4e6] Black must now prevent Nxe6!} Rad8 $2 {[%emt 0:11:53] Loses the game.} (14... Bg4+ $1 $14 15. Kf1 Rab8 16. Bxc6 Bxb2 17. Bxb2 Rxb2) 15. Nxe6 $18 {[%emt 0:01:28]} fxe6 {[%emt 0:00:11]} 16. Nf3 {[%emt 0:00:07]} Bd4 $2 {[%emt 0:03:13] [#]} (16... Nf2 {might work better.}) 17. c3 {[%emt 0:01:06]} ({Less strong is} 17. Bxc6 Rd6 18. Nxd4 Rxd4 $18) (17. Bh6 Bg7 $18) 17... Nf2 {[%emt 0:01:11]} (17... Bc5 $142 18. b4 (18. Bxc6 Rd6 $18) 18... Nf2 19. Bxc6 (19. bxc5 Nxe4 20. Ra3 Nxc5 $18) 19... Rd6) 18. Nxd4 {[%emt 0:08:03] White is clearly winning.} Nxe4 {[%emt 0:00:20]} 19. Be3 {[%emt 0:00:11]} (19. Nxe6 Rf2+ 20. Ke1 Rd6 $18) 19... Nc5 {[%emt 0:06:18]} 20. a6 {[%emt 0:03:49]} Rd6 {[%emt 0:03:17]} 21. Ra5 {[%emt 0:02:15] Inhibits e5.   Weighted Error Value: White=0.03 (flawless) /Black=0.78} ({Weaker is} 21. Bxc6 e5 $18) 1-0

[Event "FIDE WSCC 65 2022"]
[Site "Assisi"]
[Date "2022.11.25"]
[Round "10.15"]
[White "Ubezio, Marco"]
[Black "De Jong, Tom"]
[Result "1-0"]
[ECO "A30"]
[WhiteElo "2070"]
[BlackElo "2216"]
[Annotator "TA"]
[PlyCount "57"]
[EventDate "2022.11.14"]
[EventType "swiss"]
[EventCountry "ITA"]
[SourceTitle "playchess.com"]
[Source "ChessBase"]
[SourceQuality "1"]
[TimeControl "40/5400+30:1800+30"]

{[%evp 9,57,9,8,7,6,9,13,11,7,16,28,20,25,14,8,15,14,13,19,0,0,0,0,0,0,0,0,-202,-126,-123,38,39,17,33,31,28,32,39,23,21,92,104,100,91,94,96,123,127,142,62]} 1. d4 {[%emt 0:00:04]} d5 {[%emt 0:00:06]} 2. Nf3 {[%emt 0:00:05]} c5 {[%emt 0:00:10]} 3. c4 {[%emt 0:00:07]} e6 {[%emt 0:00:11]} 4. g3 {[%emt 0:00:44]} Nc6 {[%emt 0:07:02]} 5. Bg2 {[%emt 0:02:10]} dxc4 {[%emt 0:09:44][%cal Rc5d4]} 6. Qa4 {[%emt 0:01:10] A30: Symmetrical English: Double Fianchetto and Hedgehog.} Bd7 {[%emt 0:03:51]} (6... cxd4 {is interesting.} 7. Nxd4 Qxd4 8. Bxc6+ Bd7) 7. Qxc4 {[%emt 0:00:26]} Nf6 {[%emt 0:06:44][%cal Ob7b5]} 8. dxc5 {[%emt 0:03:11] The position is equal.} Qa5+ {[%emt 0:00:30]} 9. Nc3 {[%emt 0:00:34]} Qxc5 {[%emt 0:02:14]} 10. Qxc5 {[%emt 0:02:07]} Bxc5 {[%emt 0:00:04]} 11. a3 {[%emt 0:04:56]} Rc8 {[%emt 0:09:59]} 12. O-O {[%emt 0:00:45][%cal Bh1f1,Bf1d1,Bd1d6][%mdl 32]} O-O {[%emt 0:00:50] [#]} 13. Rd1 $146 {[%emt 0:05:55]} ({Predecessor:} 13. b4 Be7 14. Bb2 Rfd8 15. Rfd1 Be8 16. h3 h6 17. e3 Kf8 18. Kf1 b6 19. Rac1 a5 20. b5 {0-1 (27) Hladik,J (2191)-Grustik,R (2268) Czech Republic 2008}) 13... h6 {[%emt 0:04:59]} 14. Bf4 {[%emt 0:02:00]} Rfd8 {[%emt 0:03:11]} 15. Bd6 {[%emt 0:05:22]} Bxd6 {[%emt 0:01:49]} 16. Rxd6 {[%emt 0:00:40]} Kf8 {[%emt 0:01:55]} (16... Be8 {simplifies} 17. Rxd8 Rxd8 18. e3 g5) 17. Rad1 {[%emt 0:02:43]} Ke7 {[%emt 0:00:10]} 18. Nd4 $2 {[%emt 0:05:59]} Ne5 {[%emt 0:13:25] [#] aiming for ...Nc4.} 19. Bxb7 {[%emt 0:22:36]} Kxd6 $2 {[%emt 0:14:16]} (19... Rxc3 $17 20. bxc3 Kxd6 21. Nc6+ Kc7 22. Nxd8 Kxd8) 20. Bxc8 $14 {[%emt 0:02:29]} Rxc8 {[%emt 0:03:10]} 21. Nf3+ {[%emt 0:00:40]} Nd5 $1 {[%emt 0:03:34] ...Nc4 is the strong threat.} 22. Ne4+ {[%emt 0:00:12][%mdl 64] [#] Deflection} Ke7 {[%emt 0:00:20]} 23. Nxe5 {[%emt 0:00:07]} Ba4 {[%emt 0:00:17]} 24. Rd4 {[%emt 0:05:31]} Be8 {[%emt 0:02:44]} (24... Bb5 $11) 25. Rc4 $16 {[%emt 0:01:34] White is more active.} Rb8 {[%emt 0:02:28]} 26. b4 {[%emt 0:00:27]} a5 {[%emt 0:01:46]} 27. bxa5 {[%emt 0:05:37]} Rb1+ {[%emt 0:04:27]} 28. Kg2 {[%emt 0:00:08] Hoping for Rc8.} Ra1 {[%emt 0:02:28]} 29. Nc6+ {[%emt 0:09:25] Weighted Error Value: White=0.18 (very precise) /Black=0.20 (precise)} (29. Rc8 $16) 1-0

[Event "FIDE WSCC 65 2022"]
[Site "Assisi"]
[Date "2022.11.26"]
[Round "11.1"]
[White "Fernandez Garcia, Jose Luis"]
[Black "Kristiansen, Jens"]
[Result "1-0"]
[ECO "B67"]
[WhiteElo "2358"]
[BlackElo "2353"]
[Annotator "TA"]
[PlyCount "119"]
[EventDate "2022.11.14"]
[EventType "swiss"]
[EventCountry "ITA"]
[SourceTitle "playchess.com"]
[Source "ChessBase"]
[SourceQuality "1"]
[TimeControl "40/5400+30:1800+30"]

{[%evp 20,119,13,44,55,26,60,49,49,54,59,48,52,51,50,56,58,50,47,53,41,52,105,104,122,104,430,451,463,278,647,79,78,53,54,48,121,132,128,118,125,106,108,27,27,8,27,27,27,27,27,27,27,27,27,27,27,27,27,10,68,12,96,68,96,96,96,43,29957,9903,29967,29968,29969,29970,29970,190,9185,4525,1349,131,131,131,131,131,131,128,29970,29971,29971,29971,29972,29973,29975,29976,29978,29979,29979,29980,29979,29980,29983,29984]} 1. e4 {[%emt 0:00:13]} c5 {[%emt 0:00:08]} 2. Nf3 {[%emt 0:00:09]} d6 {[%emt 0:00:07]} 3. d4 {[%emt 0:00:29]} cxd4 {[%emt 0:00:07]} 4. Nxd4 {[%emt 0:00:03]} Nf6 {[%emt 0:00:09]} 5. Nc3 {[%emt 0:00:05]} Nc6 {[%emt 0:00:06]} 6. Bg5 {[%emt 0:01:56]} e6 {[%emt 0:00:16]} 7. Qd2 {[%emt 0:00:09]} a6 {[%emt 0:00:23]} 8. O-O-O {[%emt 0:01:14]} Bd7 {[%emt 0:01:51]} 9. f4 {[%emt 0:03:14]} b5 {[%emt 0:00:16]} 10. Nxc6 {[%emt 0:07:34]} Bxc6 {[%emt 0:00:16]} 11. Qe3 {[%emt 0:00:35]} h6 {[%emt 0:13:29] B67: Sicilian: Richter-Rauzer: 7...a6 8 0-0-0 Bd7, lines without 9 f4 Be7.} 12. Bh4 {[%emt 0:11:59]} Be7 {[%emt 0:00:49][%cal Og7g5]} 13. Bxf6 $1 {[%emt 0:05:28] [#]} Bxf6 $146 {[%emt 0:04:00] White is slightly better.} ({Predecessor:} 13... gxf6 14. f5 Qa5 15. Kb1 b4 16. Ne2 Qe5 17. Nd4 Bxe4 18. fxe6 fxe6 19. Bd3 Bxg2 {½-½ (42) Bailet,P (2426)-Vovk,A (2543) Plancoet 2012}) 14. e5 {[%emt 0:02:13]} Be7 {[%emt 0:00:12]} 15. exd6 {[%emt 0:01:14]} Bxd6 {[%emt 0:00:13] Hoping for ...Qc7.} 16. Ne4 $1 $36 {[%emt 0:00:21][%mdl 2048] White has some pressure.} Bxe4 {[%emt 0:00:42]} 17. Qxe4 {[%emt 0:00:05][%cal Od1d6]} O-O {[%emt 0:01:58]} 18. Bd3 {[%emt 0:00:47][%csl Gd3][%cal Re4h7]} g6 {[%emt 0:00:33]} 19. h4 {[%emt 0:03:48] Strongly threatening h5.} Qf6 {[%emt 0:07:21]} 20. Rdf1 {[%emt 0:01:49]} h5 {[%emt 0:01:03]} (20... Qf5 $14) 21. g4 $1 $16 {[%emt 0:01:14]} hxg4 {[%emt 0:00:42]} 22. h5 {[%emt 0:00:07][%cal Rh5g6]} Kg7 {[%emt 0:00:20][%mdl 8192]} (22... Rad8 $16 {is more resistant.}) 23. hxg6 $18 {[%emt 0:03:50]} fxg6 {[%emt 0:00:41][%cal Rd6f4]} 24. Kb1 {[%emt 0:00:22] Black must now prevent Rhg1.} Bc5 $2 {[%emt 0:06:11] [#]} (24... Rad8 25. Rhg1 Rg8 26. Rxg4 Kf7) 25. Rh2 $2 {[%emt 0:14:07]} (25. Rh5 $3 $18 {[%mdl 512]}) 25... Rad8 $16 {[%emt 0:04:24]} 26. Rg2 {[%emt 0:08:31] Against g3} (26. Rfh1 Rh8 $11) 26... Rd4 {[%emt 0:01:17]} 27. Qe2 {[%emt 0:00:21]} Rxf4 {[%emt 0:04:56]} ({Black should try} 27... Rb4 $14 28. b3 Rxf4 29. Rxf4 Qxf4 30. Rxg4 (30. Qxe6 Rf5 $11) 30... Qe3) 28. Rxf4 {[%emt 0:00:26][%mdl 64] Remove Defender} Qxf4 {[%emt 0:00:07]} 29. Rxg4 {[%emt 0:00:09]} (29. Qxe6 $2 {leads to mate.} Qf1+ $3 {[%mdl 512]} 30. Bxf1 Rxf1+) 29... Qe3 {[%emt 0:01:47]} 30. Rxg6+ {[%emt 0:02:59]} Kf7 {[%emt 0:00:09] aiming for ...Qxe2.} 31. Qxe3 {[%emt 0:03:01]} (31. Qf1+ $16 Ke8 32. Qh1) 31... Bxe3 {[%emt 0:00:07][%mdl 4096] Endgame KRB-KRB} 32. a4 {[%emt 0:00:16]} Rb8 {[%emt 0:03:21]} 33. Rg4 {[%emt 0:00:27]} Bc5 {[%emt 0:00:24]} 34. axb5 {[%emt 0:03:30]} axb5 {[%emt 0:01:02]} 35. Rg5 {[%emt 0:00:17]} Be7 {[%emt 0:02:11]} 36. Rxb5 {[%emt 0:04:47]} Rxb5 {[%emt 0:00:07]} 37. Bxb5 $11 {[%emt 0:00:06] KB-KB} Kf6 {[%emt 0:00:14]} 38. Ka2 {[%emt 0:00:28]} Ke5 {[%emt 0:00:22]} 39. Kb3 {[%emt 0:00:17]} Kd6 {[%emt 0:03:23]} (39... Kd4 $11) 40. Ka4 {[%emt 0:00:52]} (40. Kc4 $14) 40... Kc7 {[%emt 0:00:38]} (40... Kd5 $11 {remains equal.}) 41. Ka5 {[%emt 0:30:41]} Bf6 {[%emt 0:30:42]} 42. b4 {[%emt 0:01:53] c4 is the strong threat.} Bc3 {[%emt 0:00:36]} 43. Bc4 {[%emt 0:00:17]} (43. Bd3 $16) 43... e5 $2 {[%emt 0:01:31][%mdl 8192]} (43... Kd6 $14) 44. Bd5 {[%emt 0:00:23]} (44. Bd3 $142 e4 45. Bxe4 Kd6 46. Kb5 Ke5 47. Kc4 Bd2 48. Bf3 Bh6 49. Bg4) 44... Kd6 {[%emt 0:06:11]} 45. Be4 {[%emt 0:00:19]} Kc7 {[%emt 0:00:18]} 46. Kb5 {[%emt 0:00:45]} Kd6 {[%emt 0:00:29]} 47. Bf3 $2 {[%emt 0:00:34]} (47. Kc4 {mates} Bd2 48. Kb3 Kc7 49. c4 Kb6 50. c5+ Kb5 51. Bd3+ Kc6 52. Kc4) 47... Kc7 $2 {[%emt 0:01:03]} (47... e4 48. Bxe4 Ke5) 48. Kc4 $18 {[%emt 0:01:58]} Be1 {[%emt 0:00:19] [#]} 49. Kc5 $2 {[%emt 0:00:31]} (49. Kb3 $1 $18 {and the rest is easy. And now c4 would win.} e4 50. Bh5 (50. Bxe4 Bf2 $14)) 49... Bc3 $16 {[%emt 0:00:34]} 50. Be4 {[%emt 0:00:48]} Bd4+ {[%emt 0:00:45]} 51. Kb5 {[%emt 0:04:59] Threatening mate with c4. White is more active.} Bc3 {[%emt 0:00:28]} 52. Bf3 {[%emt 0:00:30] Be4 would kill now.} e4 $2 {[%emt 0:21:59][%mdl 8192]} (52... Kd6 $16) 53. Bxe4 {[%emt 0:00:15] White mates.} Kd6 {[%emt 0:01:03]} 54. Bf3 {[%emt 0:01:03]} Kc7 {[%emt 0:00:46]} 55. Kc5 {[%emt 0:00:15]} Kd7 {[%emt 0:03:45]} 56. b5 {[%emt 0:00:54][%cal Bb4b5,Bb5b6][%mdl 32]} Kc7 {[%emt 0:01:10]} 57. b6+ {[%emt 0:00:26]} Kb8 {[%emt 0:00:54]} 58. Kc6 {[%emt 0:00:15]} Kc8 {[%emt 0:01:52]} 59. Bg4+ {[%emt 0:00:50]} Kb8 {[%emt 0:00:12]} 60. Bf5 {[%emt 0:00:12] Weighted Error Value: White=0.49/Black=0.74} 1-0

[Event "FIDE WSCC 65 2022"]
[Site "Assisi"]
[Date "2022.11.26"]
[Round "11.2"]
[White "Nunn, John D M"]
[Black "Bogdanov, Valentin"]
[Result "1-0"]
[ECO "B31"]
[WhiteElo "2580"]
[BlackElo "2323"]
[Annotator "TA"]
[PlyCount "89"]
[EventDate "2022.11.14"]
[EventType "swiss"]
[EventCountry "ITA"]
[SourceTitle "playchess.com"]
[Source "ChessBase"]
[SourceQuality "1"]
[TimeControl "40/5400+30:1800+30"]

{[%evp 18,89,25,13,18,15,17,12,16,14,20,7,28,26,11,14,12,0,0,0,0,0,0,-10,18,0,0,0,0,0,0,0,0,0,0,0,0,0,0,0,0,0,0,0,3,2,2,2,11,0,14,16,49,54,67,66,110,125,149,149,200,148,162,151,151,155,135,141,150,136,135,139,221,230]} 1. e4 {[%emt 0:00:05]} c5 {[%emt 0:00:11]} 2. Nf3 {[%emt 0:00:09]} Nc6 {[%emt 0:00:07]} 3. Bb5 {[%emt 0:01:31]} g6 {[%emt 0:00:20]} 4. Bxc6 {[%emt 0:00:09]} dxc6 {[%emt 0:00:08]} 5. d3 {[%emt 0:00:07]} Bg7 {[%emt 0:00:42]} 6. h3 {[%emt 0:00:11]} Nf6 {[%emt 0:00:23]} 7. Nc3 {[%emt 0:00:12]} Nd7 {[%emt 0:03:10][%cal Bf6d7,Bd7f8,Bf8e6,Be6d4][%mdl 32]} 8. Be3 {[%emt 0:00:55]} e5 {[%emt 0:02:10]} 9. Qd2 {[%emt 0:01:09]} Qe7 {[%emt 0:00:40]} 10. O-O {[%emt 0:09:08]} Nf8 {[%emt 0:01:28] B31: Sicilian: 2...Nc6 3 Bb5 g6.} 11. Nh2 {[%emt 0:01:41]} Ne6 {[%emt 0:00:59]} 12. Rae1 {[%emt 0:01:19]} O-O {[%emt 0:03:31][%cal Oc5c4] The position is equal.} 13. Ne2 {[%emt 0:01:44] Prevents c4.} Bd7 {[%emt 0:05:58] [#]} 14. Kh1 $146 {[%emt 0:04:49]} ({Predecessor:} 14. Bh6 f6 15. Bxg7 Kxg7 16. f4 exf4 17. Nxf4 Nd4 18. Nf3 b6 19. Nxd4 cxd4 20. c4 {½-½ (31) Latas,P (2248)-Evaristo,C (2254) ICCF email 2018}) 14... Rad8 {[%emt 0:09:34]} 15. b3 {[%emt 0:00:49]} b6 {[%emt 0:06:39]} 16. a4 {[%emt 0:01:58]} Nd4 {[%emt 0:06:45]} 17. Ng3 {[%emt 0:05:49]} Rde8 {[%emt 0:03:21]} 18. Qd1 {[%emt 0:08:38]} Qh4 {[%emt 0:01:54]} 19. Qd2 {[%emt 0:09:43] Bg5 is the strong threat.} Qd8 {[%emt 0:00:21]} 20. f4 {[%emt 0:01:09]} (20. Bg5 $5 {[%cal Rg5d8]} f6 21. Be3 $15) 20... f5 {[%emt 0:06:06]} (20... Qh4 $5 {[%cal Rh4g3]} 21. Ne2 Bh6 $11) 21. Bxd4 {[%emt 0:12:10]} cxd4 {[%emt 0:00:19]} 22. exf5 {[%emt 0:00:15]} exf4 {[%emt 0:03:12]} ({Don't take} 22... gxf5 23. Nh5 $16) 23. Rxe8 {[%emt 0:07:52]} Qxe8 {[%emt 0:00:23]} 24. Qxf4 {[%emt 0:02:34]} Bxf5 {[%emt 0:05:41]} 25. Nxf5 {[%emt 0:03:14]} Rxf5 {[%emt 0:00:08]} ({Don't do} 25... gxf5 26. Nf3 $16) 26. Qd2 {[%emt 0:00:39]} Rxf1+ {[%emt 0:01:51]} 27. Nxf1 $11 {[%emt 0:00:06][%mdl 4096] Endgame KQB-KQN} Qe5 {[%emt 0:07:23]} 28. Nh2 {[%emt 0:03:25]} c5 {[%emt 0:01:26]} 29. Nf3 {[%emt 0:00:58]} Qf5 {[%emt 0:00:18]} 30. Qe1 {[%emt 0:02:45]} Qd7 {[%emt 0:06:33]} 31. Qe4 {[%emt 0:01:32]} Bf6 {[%emt 0:00:41]} 32. Kg1 {[%emt 0:04:45]} Kg7 {[%emt 0:00:26]} 33. Kf1 {[%emt 0:00:41]} a5 {[%emt 0:00:44]} 34. Ke2 {[%emt 0:02:10]} Qe7 {[%emt 0:02:42]} 35. Kd1 {[%emt 0:02:18]} Qd7 {[%emt 0:02:11] Prevents Qc6.} 36. Kc1 {[%emt 0:00:24]} Kf7 {[%emt 0:02:47]} 37. Kb2 {[%emt 0:00:29]} Kg7 {[%emt 0:00:08]} 38. g4 {[%emt 0:01:07] White is clearly better.} Qe7 {[%emt 0:00:53]} (38... h6 $16 {was necessary.} 39. h4 Qf7) 39. Qd5 {[%emt 0:00:37] And now g5 would win.} h6 {[%emt 0:00:36] [#] Prevents g5.} 40. Nd2 $1 {[%emt 0:01:55]} Qc7 {[%emt 0:02:33] Against Qc6} 41. Ne4 {[%emt 0:32:45]} Be7 {[%emt 0:36:03]} 42. Kb1 {[%emt 0:02:03]} Kf8 {[%emt 0:01:29]} 43. Qe6 {[%emt 0:04:36]} Kg7 {[%emt 0:00:10]} 44. Kb2 {[%emt 0:00:00] White is much more active.} Qd8 {[%emt 0:00:00] [#]} (44... Bg5 $16 {is a better defense.} 45. Qd5 Be7) 45. Qc6 $1 {[%emt 0:00:00] Weighted Error Value: White=0.04 (flawless) /Black=0.12 (very precise)} 1-0